Cogmind - Beta 10.2 @@@ ROGUE MODE // 2020.11.25 @ 13:10:19 // Halloween2020/ForbiddenLore Player: Luigi Panache Result: Destroyed by S-10 Pest with Light Assault Rifle Performance ------------- Evolutions (0) 0 Regions Visited (1) 200 Robots Destroyed (2) 10 Value Destroyed (20) 20 Prototype IDs (0) 0 Alien Tech Used (0) 0 Bonus (0) 0 TOTAL SCORE: 230 Bonus ------- None Cogmind --------- Core Integrity 0/250 Matter 133/300 Energy 100/100 System Corruption 0% Temperature Cool (0) Movement Core (300) Ox5 Location -10/Materials Parts ------- > --- POWER (1) -------- (None) > --- PROPULSION (2) --- (None) > --- UTILITY (2) ------ Large Storage Unit > --- WEAPON (2) ------- (None) > --- INVENTORY (10) --- (None) Peak State ------------ > --- POWER ------------ (None) > --- PROPULSION ------- (None) > --- UTILITY ---------- Large Storage Unit > --- WEAPON ----------- Grenade Launcher Datajack > --- INVENTORY -------- (None) [Rating: 3] Favorites ----------- Power None Propulsion Hover Unit Hover Unit Hover Unit Utility Large Storage Unit Storage Large Storage Unit Weapon Grenade Launcher Launcher Grenade Launcher Special Melee Weapon Datajack Build | -11 -10 ------- Run | Scr Mat Slots Evolved . | . . Power . | . . Propulsion . | . . Utility . | . . Weapon . | . . Parts Attached 4 | . 4 Power . | . . Engine . | . . Core . | . . Reactor . | . . Propulsion 1 | . 1 Treads . | . . Leg . | . . Wheel . | . . Hover 1 | . 1 Flight . | . . Utility 1 | . 1 Device . | . . Storage 1 | . 1 Processor . | . . Hackware . | . . Protection . | . . Artifact . | . . Weapon 2 | . 2 Energy Gun . | . . Energy Cannon . | . . Ballistic Gun . | . . Ballistic Cannon . | . . Launcher 1 | . 1 Special Weapon . | . . Impact Weapon . | . . Slashing Weapon . | . . Piercing Weapon . | . . Special Melee Weapon 1 | . 1 Unidentified Prototypes . | . . Parts Lost 3 | . 3 Power . | . . Propulsion 1 | . 1 Utility . | . . Weapon 2 | . 2 Highest Loss Streak 3 | . 3 Average Slot Usage (%) 32 | . 32 Storage 12 | . 12 Launcher 10 | . 10 Special Melee Weapon 9 | . 9 Naked Turns 5 | . 5 Heaviest Build 20 | . 20 Greatest Support 6 | 3 6 Greatest Overweight (x) 6 | . 6 Average Overweight (x) 3 | . 3 Largest Inventory Capacity 10 | 4 10 Average Capacity 9 | 4 9 Most Carried . | . . Average Carried . | . . Final Capacity 10 | 4 10 Final Carried . | . . Class Distribution -------------------- 100% | Mutant Dominant Class ---------------- Mutant | -10/Materials Resources | -11 -10 ----------- Run | Scr Mat Matter Collected 68 | 61 7 Remotely . | . . Salvage Created 17 | . 17 Parts 3 | . 3 Haulers Intercepted . | . . Recyclers Shooed . | . . Parts Field Recycled . | . . Retrieved Matter . | . . Parts Self-Destructed . | . . Prevented . | . . Kills | -11 -10 ------- Run | Scr Mat Combat Hostiles Destroyed 2 | . 2 AOE 2 | . 2 Classes Destroyed 1 | . 1 Swarmer 2 | . 2 Best Kill Streak 2 | . 2 Combat Bots Only 2 | . 2 Max Kills in Single Turn 2 | . 2 Gunslinging . | . . Exploded 2 | . 2 Melee . | . . Uniques/NPCs Destroyed . | . . Combat | -11 -10 -------- Run | Scr Mat Damage Taken 483 | . 483 Core 254 | . 254 Absorbed by Shields . | . . Core Remaining (%) 100 | 100 . Volleys Fired 1 | . 1 Largest 1 | . 1 Hottest 30 | . 30 Shots Fired 1 | . 1 Gun . | . . Cannon . | . . Launcher 1 | . 1 Special . | . . Kinetic . | . . Thermal . | . . Explosive 1 | . 1 Electromagnetic . | . . Robot Hit Streak 1 | . 1 Robot Miss Streak . | . . Penetration Max . | . . Secondary Targets . | . . Shots Hit Robots 2 | . 2 Core Hits 3 | . 3 Critical Hits . | . . Critical Kills . | . . Critical Parts Destroyed . | . . Melee Attacks 1 | . 1 Impact . | . . Slashing . | . . Piercing . | . . Sneak Attacks 1 | . 1 Combat Hostiles . | . . Follow-up Attacks . | . . Damage Inflicted 93 | . 93 Guns . | . . Cannons . | . . Explosions 93 | . 93 Melee . | . . Ramming . | . . Kinetic . | . . Thermal . | . . Explosive 93 | . 93 Electromagnetic . | . . Impact . | . . Slashing . | . . Piercing . | . . Highest Corruption . | . . Average Corruption . | . . Corruption Purged . | . . Overload Shots . | . . Overflow Damage . | . . Projectiles . | . . Explosions . | . . Melee . | . . Knockbacks . | . . Impact . | . . Kinetic . | . . Secondary . | . . Self-Inflicted Damage . | . . Shots . | . . Rammed . | . . Targets Rammed . | . . Kicked . | . . Crushed . | . . Highest Temperature . | . . Average Temperature . | . . Received Heat Transfer . | . . Siege Activations . | . . Robots Corrupted . | . . Combat Hostiles . | . . Parts Fried . | . . Impact Corruptions . | . . Robots Melted . | . . Combat Hostiles . | . . Parts Melted . | . . Heat Transferred . | . . Parts Sabotaged . | . . Parts Stolen . | . . Parts Stripped . | . . Power Chain Reactions . | . . Missiles Intercepted . | . . Alert | -11 -10 ------- Run | Scr Mat Peak Influence 65 | . 65 Initial . | . . Average 21 | . 21 Maximum Alert Level . | . . Low Security (%) 100 | 100 100 Level 1 . | . . Level 2 . | . . Level 3 . | . . Level 4 . | . . Level 5 . | . . High Security . | . . Max Security . | . . Squads Dispatched 1 | . 1 Investigation . | . . Extermination . | . . Reinforcement 1 | . 1 Assault . | . . Garrison . | . . Intercept . | . . Construction Impeded . | . . Haulers Reinforced . | . . Stealth | -11 -10 --------- Run | Scr Mat Distress Signals . | . . Communications Jammed . | . . Distress Signals . | . . Times Spotted 7 | . 7 Peak Tracking Total 5 | . 5 Tactical Retreats . | . . Traps | -11 -10 ------- Run | Scr Mat Traps Triggered . | . . Indirectly . | . . Trap Hack Attempts . | . . Triggered . | . . Disarmed . | . . Reprogrammed . | . . Reused . | . . Traps Extracted . | . . Installed . | . . Triggered . | . . Machines | -11 -10 ---------- Run | Scr Mat Machines Disabled . | . . Max in Single Turn . | . . Machines Sabotaged . | . . Garrisons Compromised . | . . Overloaded Fab Kills . | . . Fab Network Shutdowns . | . . Hacking | -11 -10 --------- Run | Scr Mat Machines Accessed . | . . Terminals . | . . Fabricators . | . . Repair Stations . | . . Recycling Units . | . . Scanalyzers . | . . Garrison Access . | . . Total Hacks . | . . Successful . | . . Failed . | . . Catastrophic . | . . Database Lockouts . | . . Manual . | . . Terminals . | . . Fabricators . | . . Repair Stations . | . . Recycling Units . | . . Scanalyzers . | . . Garrison Access . | . . Terminal Hacks . | . . Fabricator Hacks . | . . Repair Station Hacks . | . . Recycling Unit Hacks . | . . Scanalyzer . | . . Garrison Access Hacks . | . . Unauthorized Hacks . | . . Terminals . | . . Fabricators . | . . Repair Stations . | . . Recycling Units . | . . Scanalyzers . | . . Garrison Access . | . . Data Cores Recovered . | . . Used . | . . Hacking Detections . | . . Full Trace Events . | . . Feedback Events . | . . Feedback Blocked . | . . Robot Schematics Acquired . | . . Robots Built . | . . Matter . | . . Time . | . . Total Robot Build Rating . | . . Part Schematics Acquired . | . . Parts Built . | . . Matter . | . . Time . | . . Total Part Build Rating . | . . Parts Repaired . | . . Time . | . . Parts Recycled . | . . Recycled Matter . | . . Retrieved Matter . | . . Retrieved Components . | . . Parts Scanalyzed . | . . Part Schematics Acquired . | . . Parts Damaged . | . . Bothacking | -11 -10 ------------ Run | Scr Mat Used RIF Installer . | . . Robots Hacked 1 | . 1 Non-combat 1 | . 1 Combat . | . . Robot Hacks Applied 1 | . 1 no_distress 1 | . 1 Relay Couplers Released . | . . Robots Rewired . | . . Allies Hacked . | . . Hacks Repelled . | . . Allies | -11 -10 -------- Run | Scr Mat Total Allies . | . . Largest Group . | . . Highest-Rated Group . | . . Highest-Rated Ally . | . . Total Orders . | . . Ally Attacks . | . . Total Damage . | . . Kills . | . . Allies Corrupted . | . . Allies Melted . | . . Intel | -11 -10 ------- Run | Scr Mat Robot Analysis Total . | . . Derelict Logs Recovered . | . . Drone Launches . | . . Drone Recoveries . | . . Exploration | -11 -10 ------------- Run | Scr Mat Turns Passed 337 | 9 328 Spaces Moved 155 | 18 137 Core 143 | 18 125 Treads . | . . Legs . | . . Wheels . | . . Hover 12 | . 12 Flight . | . . Fastest Speed 50 | 50 50 Average Speed 212 | 50 233 Slowest Speed 350 | 50 350 Overloaded Moves . | . . Propulsion Burnouts . | . . Robots Hopped . | . . Cave-ins Triggered . | . . Exploration Rate (%) 17 | 2 33 Regions Visited 1 Branch Regions . Pre-discovered Areas . | . . Known Exits Taken . | . . Unknown Exits Taken 1 | 1 . Scrap Searched . | . . Spaces Dug . | . . Terrain Destroyed 4 | . 4 Melee . | . . Projectile . | . . AOE 4 | . 4 Terrain Rammed . | . . Walls Destroyed . | . . Machines Disabled . | . . Actions | -11 -10 --------- Run | Scr Mat Total 160 | 17 143 Wait . | . . Move 154 | 17 137 Hop . | . . Pick Up . | . . Fast Attach 4 | . 4 Attach . | . . Detach . | . . Swap . | . . Drop . | . . Fire 1 | . 1 Melee 1 | . 1 Ram . | . . Kick . | . . Crush . | . . Escape Stasis . | . . Rewire . | . . Trap . | . . Miscellaneous . | . . Route ------- -11/Scrapyard -10/Materials History --------- Turn | Location | Event 4 | -11/Scrapyard | Discovered new exit (range 14) 10 | -11/Scrapyard | Entered Materials 274 | -10/Materials | Core integrity fell below 50% 299 | -10/Materials | Lost 3 parts (1n2w) 304 | -10/Materials | Build established: Mutant 309 | -10/Materials | Core integrity fell below 20% 338 | -10/Materials | Destroyed by S-10 Pest with Light Assault Rifle Last Messages --------------- 00196_ R-06 Scavenger collects Flight Unit. 00197_ U-05 Engineer lays Concrete. 00200_ U-05 Engineer builds a Wall. 00200_ R-06 Scavenger collects Lgt. Ion Engine. 00201_ U-05 Engineer lays Concrete. 00204_ R-06 Scavenger collects Lgt. Assault Rifle. 00205_ U-05 Engineer lays Concrete. 00206_ U-05 Engineer builds a Wall. 00206_ U-05 Engineer lays Concrete. 00208_ Sneak attack on R-06 Scavenger. 00208_ Jacked R-06 Scavenger... >>no_distress Distress signal routine blocked. 00210_ Acquired 7 matter. 00240_ Datajack destroyed. 00243_ Grenade Launcher destroyed. 00245_ Acquired Hover Unit. 00258_ ALERT: Hostiles spotted, dispatching reinforcements to Terminal M006. 00268_ Hover Unit destroyed. Map ----- +----------------------------------------------------+ | ???????????## ##??#!! #???#######????????? | | ???????????# ####! #?? ????????? | | ############ ### """ #???????? | | + "Y" #???????? | | ######### " " * #???????? | | #### #???????? #???????? | | ##############+###??#! !#?????? """ +???????? | | #??????????????????#! !#?????? """ #???????? | | #??????????????????##!!!!##??????? """ ?????????? | | #???????????????????######???????? ?????????? | | #??????????????????????????????????####?????????? | | #???????????????????????????????????????????????? | | ##???????????????????????????????????????????????? | | #????????????????????????????????????????????????? | | #????????????????????????????????????????????????? | | #????????????##########??????????????????????????? | | #????????????# #??????????????????????????? | | #????????????# #??????????????????????????? | | #????????????# """ #??????????????????????????? | | #????????????# """ #??????????????????????????? | | #?#+##+#?????# """ #??????????????????????????? | | ### #?????# """ #####??????????????????????? | | ## #?????# # #??????????????????????? | | ## ####### # +??????????????????????? | | / = # #??????????????????????? | | ##/## ########+#### @#??????????????????????? | | # # #????# ## #??????????????????????? | | ## + #????# s #??????????????????????? | | ?# #### #????# T #??????????????????????? | | ?#= !#??# #????# #??????????????????????? | | ?# #??# #????# ######??????????????????????? | | ?# #??#+#????##a ##???????????????????????????? | | ?# #??????????# #????????????????????????????? | | ?#####????????? o ????????????????????????????? | | ?????????????? # ????????????????????????????? | | ?????????????""?# ????????????????????????????? | | ????????????""??# ???????????????????????????? | | ????????????????# ???????????????????????????? | | ????????????????# ???????????????????????????? | | ????????????????# ##???????????????????????????? | | ????????????????# ?????????????????????????????? | | ????????????????# ?????????????????????????????? | | ????????????????? ?????????????????????????????? | | ?????????????????????????????????????????????????? | | ?????????????????????????????????????????????????? | | ?????????????????????????????????????????????????? | | ?????????????????????????????????????????????????? | | ?????????????????????????????????????????????????? | | ?????????????????????????????????????????????????? | | ?????????????????????????????????????????????????? | +----------------------------------------------------+ Best States ------------- Heat Dissipation 25 Energy Generation 5 Energy Capacity 100 Matter Stores 161 Matter Capacity 300 Sight Range 16 Terrain Scan Density 10 Evasion (%) 50 Item Schematics ----------------- None Robot Schematics ------------------ None Fabricated ------------ Nothing Alien Tech Used ----------------- None Achievements -------------- None Challenges ------------ None Game ------ Seed LongswordMicroReconstructor Manual? 0 Play Time 00:04:00 Cumulative 124.4 hours Start 2020.11.25 @ 13:07:55 End 2020.11.25 @ 13:10:19 Sessions 1 Manual Loads 0 Difficulty Rogue Special Mode Halloween2020/ForbiddenLore Game No. 88 Rogue 30 Adventurer 21 Explorer 37 Win Type - Total 6 Types 6/0/0/0/0/0/0/0/0 Lore% 47 Gallery% 70 Achievement% 57 Wizard Run 0 Options --------- ASCII 0 Keyboard 1 Movement Mouse Keybinds 0 Fullscreen 2 Font 18/Terminus Map View 76x50 Tactical HUD 1 Map Filters NONE Filters NONE Steam 1 RUN: 98faeb25-dfc1-4729-b6fd-bf41f41867cd